bitfinex/quotes_SOLUSD_20260302
["timestamp","ask_amount","ask_price","bid_price","bid_amount"]
[1772472253500,8.21103129,88.29,88.247,3.58866021]
[1772472253656,3.44717349,88.269,88.23,0.2]
[1772472253856,3.44717349,88.269,88.235,3.69383402]
[1772472254058,39.64702816,88.279,88.23,0.2]
[1772472254059,11.65820478,88.26,88.23,0.2]
[1772472254250,3.44717349,88.259,88.204,11.33735431]
[1772472254456,3.44717349,88.249,88.204,11.33735431]
[1772472254675,8.21103129,88.24,88.204,11.33735431]
[1772472255060,8.21103129,88.25,88.204,11.33735431]
[1772472255263,8.21103129,88.25,88.19,0.2]
[1772472255264,8.21103129,88.24,88.19,0.2]
[1772472255474,8.21103129,88.23,88.19,0.2]
[1772472255658,39.66949641,88.229,88.191,3.30516742]
[1772472256164,3.50782711,88.228,88.191,3.30516742]
[1772472256564,8.21103129,88.22,88.19,0.2]
[1772472257270,39.66949641,88.229,88.18,0.2]
[1772472257271,3.50782711,88.209,88.18,0.2]
[1772472257475,85.00606375,88.229,88.173,1e-08]
[1772472257476,3.45527665,88.199,88.173,1e-08]
[1772472257674,11.33671167,88.209,88.173,3.59254393]
[1772472257979,3.45527665,88.199,88.16,0.2]
[1772472259370,39.67849085,88.209,88.16,11.54289548]
[1772472259773,3.45527665,88.208,88.161,3.59254392]
[1772472262391,11.33182997,88.247,88.163,3.59254392]
[1772472262688,3.45527665,88.246,88.196,0.28432314]
[1772472262862,11.33172883,88.248,88.162,232.5264853]
[1772472262863,3.45527665,88.239,88.199,3.59254392]
[1772472264190,7.394787,88.254,88.209,3.59254392]
[1772472264397,11.33105956,88.253,88.211,3.59254392]
[1772472264564,7.394787,88.254,88.211,3.59254392]
[1772472264765,18.72580907,88.254,88.211,3.59254392]
[1772472264991,7.394787,88.254,88.217,3.59254392]
[1772472265175,7.394787,88.254,88.219,3.59254392]
[1772472265889,11.32939767,88.266,88.219,3.59254392]
[1772472266591,11.32939767,88.266,88.211,1.13364546]
[1772472266592,3.45527665,88.269,88.221,3.59254392]
[1772472266780,3.45527665,88.249,88.21,3.59254392]
[1772472266976,8.21103129,88.24,88.199,3.59254392]
[1772472267169,3.73959979,88.259,88.203,3.59254392]
[1772472267371,3.45527665,88.259,88.203,3.59254392]
[1772472267769,3.45527665,88.259,88.209,3.59254392]
[1772472268288,8.21103129,88.27,88.21,0.28432314]
[1772472268499,3.45527665,88.269,88.219,3.59254392]
[1772472268787,3.45527665,88.269,88.228,0.28432314]
[1772472268971,3.45527665,88.269,88.229,3.59254392]
[1772472269172,11.32846579,88.274,88.229,3.59254392]
[1772472269592,3.45527665,88.273,88.229,3.59254392]
[1772472269791,3.45527665,88.259,88.22,11.33529811]
[1772472269981,3.45527665,88.249,88.218,3.59254392]
[1772472270170,3.45527665,88.249,88.208,11.33682282]
[1772472270801,3.45527665,88.247,88.208,11.33682282]
[1772472271468,3.45527665,88.239,88.208,11.33682282]
[1772472273370,11.33298578,88.238,88.198,3.87686706]
[1772472273578,11.3324432,88.243,88.198,3.87686706]
[1772472274171,11.3324432,88.243,88.199,3.59254392]
[1772472274878,11.3324432,88.243,88.198,61.88432314]
[1772472274879,3.45527665,88.248,88.201,3.59254392]
[1772472276405,11.33182997,88.247,88.203,3.59254392]
[1772472276767,11.33182997,88.247,88.193,3.59254392]
[1772472276768,3.45527665,88.246,88.193,3.59254392]
[1772472276971,3.45527665,88.229,88.184,3.59254392]
[1772472277172,3.45527665,88.219,88.184,3.59254392]
[1772472277587,3.45527665,88.229,88.184,3.59254392]
[1772472278373,3.45527665,88.227,88.184,3.59254392]
[1772472278574,3.45527665,88.219,88.185,11.33979701]
[1772472278774,3.45527665,88.209,88.174,14.93368526]
[1772472278992,3.45527665,88.209,88.169,11.341759]
[1772472279193,3.45527665,88.209,88.164,14.93501936]
[1772472279390,3.45527665,88.199,88.161,11.34288404]
[1772472279598,8.23029232,88.19,88.161,11.34288404]
[1772472279783,3.45527665,88.189,88.161,11.34288404]
[1772472280184,3.45527665,88.209,88.162,3.59254392]
[1772472280585,11.33684019,88.208,88.164,3.59254392]
[1772472281084,3.45527665,88.207,88.164,3.59254392]
[1772472282690,11.33709724,88.206,88.166,3.59254392]
[1772472283393,3.45527665,88.205,88.161,11.34284287]
[1772472283576,11.33709724,88.206,88.162,3.59254392]
[1772472284178,3.45527665,88.228,88.179,0.28432314]
[1772472284373,3.45527665,88.248,88.194,3.59254392]
[1772472284579,3.45527665,88.248,88.2,3.59254392]
[1772472286094,11.33182997,88.247,88.2,3.59254392]
[1772472286292,11.33134977,88.251,88.2,3.59254392]
[1772472286486,11.33082863,88.255,88.2,3.59254392]
[1772472286696,28.32310871,88.268,88.216,0.14216157]
[1772472286697,3.45527665,88.268,88.216,0.14216157]
[1772472286895,3.45527665,88.266,88.206,3.59254392]
[1772472287103,3.45527665,88.259,88.206,3.59254392]
[1772472290273,3.44345624,88.249,88.208,3.51968371]
[1772472290477,3.44345624,88.247,88.2,3.51968371]
[1772472290675,3.44345624,88.229,88.191,3.51968371]
[1772472290879,3.44345624,88.229,88.181,3.51968371]
[1772472291976,11.67374856,88.25,88.183,3.51968371]
[1772472292179,3.44345624,88.249,88.189,3.51968371]
[1772472292399,3.44345624,88.247,88.191,3.51968371]
[1772472293201,3.44345624,88.239,88.191,3.51968371]
[1772472294482,3.44345624,88.239,88.199,3.51968371]
[1772472294687,11.33157316,88.249,88.199,3.51968371]
[1772472296386,49.00071391,88.287,88.195,3.69383402]
[1772472296387,3.44345624,88.261,88.209,3.51968371]
[1772472296586,3.44345624,88.259,88.209,3.51968371]
[1772472298397,3.44345624,88.249,88.209,3.51968371]
[1772472299293,3.44345624,88.247,88.21,11.33658315]
[1772472299700,3.44345624,88.239,88.202,11.33759253]
[1772472300099,3.44345624,88.247,88.203,3.51968371]
[1772472300609,11.33117103,88.253,88.209,3.51968371]
[1772472301210,3.44345624,88.265,88.215,3.51968371]
[1772472301402,3.44345624,88.265,88.21,0.28432314]
[1772472301403,3.44345624,88.272,88.219,3.51968371]
[1772472302090,3.44345624,88.269,88.219,3.51968371]
[1772472302501,3.44345624,88.259,88.212,11.33625951]
[1772472302701,3.44345624,88.259,88.212,14.85594322]
[1772472302902,3.44345624,88.259,88.213,3.51968371]
[1772472303293,3.44345624,88.257,88.215,3.51968371]
[1772472303709,3.44345624,88.249,88.206,11.33696954]
[1772472303907,3.44345624,88.249,88.207,3.51968371]
[1772472305730,3.44345624,88.249,88.178,3.69383402]
[1772472305731,3.44345624,88.229,88.176,3.51968371]
[1772472306026,3.44345624,88.219,88.176,3.51968371]
[1772472306210,3.44345624,88.209,88.176,3.51968371]
[1772472306909,3.44345624,88.237,88.178,3.51968371]
[1772472307912,8.23029232,88.24,88.186,0.28432314]
[1772472307913,3.44345624,88.235,88.186,0.28432314]
[1772472308222,3.44345624,88.235,88.189,3.51968371]
[1772472308934,39.66634932,88.236,88.18,3.51968371]
[1772472308935,3.44345624,88.229,88.18,3.51968371]
[1772472310420,3.44345624,88.227,88.182,3.51968371]
[1772472311612,3.44345624,88.227,88.188,3.51968371]
[1772472311927,3.44345624,88.236,88.19,3.51968371]
[1772472312128,3.44345624,88.254,88.198,3.51968371]
[1772472312512,39.65780974,88.255,88.184,3.69383402]
[1772472312513,3.44345624,88.252,88.203,0.28432314]
[1772472312819,3.44345624,88.252,88.201,0.28432314]
[1772472312820,3.44345624,88.252,88.208,3.51968371]
[1772472313831,3.44345624,88.261,88.208,3.51968371]
[1772472315404,11.33016088,88.26,88.214,3.32670734]
[1772472315608,11.33016088,88.26,88.218,3.32670734]
[1772472316106,3.44345624,88.261,88.221,0.28432314]
[1772472316308,3.39885554,88.278,88.228,3.32670734]
[1772472316703,3.39885554,88.269,88.228,3.32670734]
[1772472316902,3.39885554,88.269,88.213,3.61103048]
[1772472317509,3.44050178,88.267,88.213,3.61103048]
[1772472317714,3.44050178,88.267,88.215,3.72776527]
[1772472318344,3.44050178,88.259,88.215,3.44344213]
[1772472318545,3.44050178,88.249,88.178,11.34069722]
[1772472318841,3.44050178,88.249,88.182,0.28432314]
[1772472319436,3.44050178,88.249,88.182,0.14216157]
[1772472319635,3.44050178,88.239,88.186,0.28432314]
[1772472320536,3.44050178,88.239,88.198,3.72776527]
[1772472321325,3.44050178,88.239,88.182,0.14216157]
[1772472321749,3.44538397,88.237,88.186,0.28432314]
[1772472322644,3.44538397,88.235,88.186,0.28432314]
[1772472323035,3.44538397,88.229,88.182,0.28432314]
[1772472325748,3.44538397,88.227,88.181,0.28432314]
[1772472325923,3.44538397,88.227,88.176,3.69383402]
[1772472326540,3.44538397,88.219,88.168,11.34186338]
[1772472326748,96.34129752,88.228,88.163,11.34253436]
[1772472326749,3.44538397,88.209,88.163,11.34253436]
[1772472327232,3.44538397,88.209,88.164,0.28432314]
[1772472327433,3.44538397,88.209,88.164,0.14216157]
[1772472327628,3.44538397,88.209,88.164,0.47840368]
[1772472327837,9.33565366,88.208,88.179,3.44344213]
[1772472328326,37.67775414,88.208,88.167,3.44344213]
[1772472328532,37.67775414,88.208,88.167,3.72776527]
[1772472328842,37.67775414,88.208,88.163,11.34253436]
[1772472329050,8.23029232,88.2,88.148,3.44344213]
[1772472329439,8.23029232,88.19,88.112,4.82477569]
[1772472329642,8.23029232,88.19,88.115,3.44344213]
[1772472329826,3.44050178,88.188,88.127,0.28432314]
[1772472330028,3.44050178,88.188,88.128,3.44344213]
[1772472330648,3.44050178,88.188,88.13,3.44344213]
[1772472330851,3.44050178,88.188,88.136,0.14216157]
[1772472331151,3.44050178,88.169,88.116,11.34867674]
[1772472331357,3.44050178,88.169,88.117,3.44344213]
[1772472332149,3.44050178,88.167,88.123,3.44344213]
[1772472332445,3.44050178,88.167,88.124,0.28432314]
[1772472332751,3.44050178,88.167,88.123,3.44344213]
[1772472334060,45.35629825,88.191,88.133,3.44344213]
[1772472334061,3.44050178,88.188,88.133,3.44344213]
[1772472334361,3.44050178,88.186,88.148,0.28432314]
[1772472334943,3.44050178,88.186,88.128,61.6]
[1772472334944,3.44050178,88.186,88.129,3.44344213]
[1772472335145,3.44050178,88.186,88.136,0.28432314]
[1772472335442,3.44050178,88.179,88.127,3.44344213]
[1772472335634,3.44050178,88.179,88.121,0.14216157]
[1772472335834,3.44050178,88.179,88.121,0.28432314]
[1772472336248,3.44050178,88.177,88.123,0.28432314]
[1772472336533,96.39592641,88.178,88.105,3.44344213]
[1772472336534,3.44050178,88.159,88.105,3.44344213]
[1772472336740,3.44050178,88.149,88.104,40.8]
[1772472336950,3.44050178,88.149,88.105,0.28432314]
[1772472337159,3.44050178,88.149,88.104,40.8]
[1772472337460,3.44050178,88.149,88.105,0.28432314]
[1772472337656,3.44050178,88.139,88.09,0.2]
[1772472337861,277.84708201,88.178,88.071,3.44344213]
[1772472337862,3.44050178,88.109,88.071,3.44344213]
[1772472338038,3.44050178,88.109,88.07,0.2]
[1772472338039,3.44050178,88.109,88.08,1e-08]
[1772472338241,3.44050178,88.127,88.082,3.44344213]
[1772472339559,3.44050178,88.119,88.07,1e-08]
[1772472339854,3.44050178,88.109,88.072,3.44344213]
[1772472340466,3.44050178,88.107,88.072,3.44344213]
[1772472340851,3.44050178,88.107,88.07,1e-08]
[1772472341270,3.44050178,88.107,88.072,3.44344213]
[1772472342070,11.34970717,88.108,88.078,3.44344213]
[1772472342567,3.44050178,88.115,88.078,3.44344213]
[1772472343473,3.44050178,88.115,88.079,11.35344406]
[1772472343775,3.44050178,88.115,88.08,3.44344213]
[1772472344764,3.44050178,88.113,88.08,3.44344213]
[1772472344965,45.38301266,88.139,88.07,1e-08]
[1772472344966,11.34836887,88.119,88.088,3.44344213]
[1772472345166,14.78887065,88.119,88.088,3.44344213]
[1772472345363,3.44050178,88.127,88.078,3.72776527]
[1772472345563,3.44050178,88.127,88.077,11.35367708]
[1772472345564,10.61320813,88.155,88.093,0.28432314]
[1772472345875,10.61320813,88.155,88.128,3.44344213]
[1772472345876,7.17270635,88.155,88.128,3.44344213]
[1772472346376,8.24915363,88.19,88.098,1.13509954]
[1772472346377,3.44050178,88.183,88.132,3.44344213]
[1772472346569,3.44050178,88.183,88.138,3.44344213]
[1772472346770,11.3401828,88.182,88.14,3.44344213]
[1772472346977,11.33960823,88.187,88.154,3.44344213]
[1772472347177,11.33894259,88.192,88.158,3.44344213]
[1772472348476,11.33748285,88.203,88.168,3.59424882]
[1772472348885,11.33632612,88.212,88.17,3.59424882]
[1772472349176,11.33632612,88.212,88.176,3.59424882]
[1772472349380,7.47074554,88.217,88.187,0.28432314]
[1772472349675,11.33410671,88.23,88.194,3.87857196]
[1772472350261,11.33375646,88.232,88.194,3.87857196]
[1772472350665,3.39293542,88.231,88.194,3.87857196]
[1772472350874,3.39293542,88.231,88.198,0.28432314]
[1772472351174,3.39293542,88.24,88.199,3.59424882]
[1772472351358,3.39293542,88.258,88.216,0.28432314]
[1772472351560,3.39293542,88.258,88.218,3.59424882]
[1772472352254,11.33028926,88.259,88.188,0.28432314]
[1772472352255,3.39293542,88.249,88.188,0.28432314]
[1772472352480,3.39293542,88.239,88.188,0.28432314]
[1772472352856,3.39293542,88.239,88.157,4.82477569]
[1772472352857,3.39293542,88.227,88.173,11.34134031]
[1772472353080,3.39293542,88.227,88.176,3.69383402]
[1772472353665,3.39293542,88.227,88.177,0.28432314]
[1772472353866,3.39293542,88.225,88.177,11.4829874]
[1772472354261,3.39293542,88.225,88.178,0.14216157]
[1772472354458,3.39293542,88.219,88.152,3.59424882]
[1772472354683,3.39293542,88.219,88.164,0.14216157]
[1772472354864,3.39293542,88.219,88.168,3.59424882]
[1772472355265,3.39293542,88.209,88.156,7.57240598]
[1772472355774,3.39293542,88.209,88.156,3.87857196]
[1772472356071,3.39293542,88.207,88.158,3.87857196]
[1772472357976,45.33751164,88.228,88.159,11.34314136]
[1772472357977,3.39293542,88.205,88.159,11.34314136]
[1772472358179,3.39293542,88.205,88.16,3.59424882]
[1772472358560,3.39293542,88.205,88.164,3.59424882]
[1772472358765,3.39293542,88.205,88.166,0.28432314]
[1772472359482,39.67984036,88.206,88.12,3.59424882]
[1772472359483,3.39293542,88.189,88.12,3.59424882]
[1772472359784,3.39293542,88.179,88.125,3.59424882]
[1772472360279,3.39293542,88.177,88.122,11.34784358]
[1772472360489,3.39293542,88.159,88.11,3.59424882]
[1772472360668,3.39293542,88.159,88.119,11.34829038]
[1772472361060,3.39293542,88.159,88.114,11.34890919]
[1772472361789,3.39293542,88.159,88.11,3.59424882]
[1772472362170,3.39293542,88.149,88.099,3.59424882]
[1772472362372,3.39293542,88.149,88.09,3.59424882]
[1772472362678,3.39293542,88.139,88.09,3.59424882]
[1772472362993,3.39293542,88.139,88.097,0.28432314]
[1772472363192,8.24915363,88.18,88.112,3.59424882]
[1772472363493,12.47241398,88.198,88.126,3.87857196]
[1772472363784,12.47241398,88.198,88.14,3.59424882]
[1772472363785,40.81772793,88.198,88.14,3.59424882]
[1772472363973,40.81772793,88.198,88.143,0.28432314]
[1772472364289,40.81772793,88.198,88.145,0.28432314]
[1772472364583,40.81772793,88.198,88.142,3.59424882]
[1772472364584,8.24915363,88.19,88.138,0.28432314]
[1772472364885,8.24915363,88.18,88.125,11.34746003]
[1772472365087,8.24915363,88.16,88.1,3.59424882]
[1772472365265,3.39293542,88.169,88.107,3.59424882]
[1772472365469,3.39293542,88.169,88.11,3.73641039]
[1772472365673,3.39293542,88.169,88.115,0.14216157]
[1772472365879,3.39293542,88.169,88.122,3.59424882]
[1772472366079,3.39293542,88.167,88.126,0.28432314]
[1772472366283,3.39293542,88.167,88.118,0.28432314]
[1772472366670,39.69694219,88.168,88.107,91.1092832]
[1772472366671,3.39293542,88.159,88.107,1.13498359]
[1772472366867,3.39293542,88.159,88.103,3.59424882]
[1772472366868,3.39293542,88.149,88.097,3.69383402]
[1772472367068,3.39293542,88.149,88.098,0.28432314]
[1772472367263,3.39293542,88.149,88.097,3.69383402]
[1772472367685,3.39293542,88.149,88.098,3.59424882]
[1772472368085,39.70594908,88.148,88.099,11.35086663]
[1772472368385,3.39293542,88.139,88.088,3.59424882]
[1772472369771,3.39293542,88.139,88.089,0.28432314]
[1772472370076,3.39293542,88.139,88.088,3.59424882]
[1772472370077,3.39293542,88.129,88.084,11.3527996]
[1772472370268,3.39293542,88.127,88.079,0.28432314]
[1772472370464,3.39293542,88.127,88.078,11.35357296]
[1772472370684,3.39293542,88.127,88.073,11.35421752]
[1772472370893,3.39293542,88.119,88.072,7.15536732]
[1772472371097,3.39293542,88.119,88.07,1e-08]
[1772472371673,3.39293542,88.119,88.071,11.35447536]
[1772472371873,3.39293542,88.127,88.075,3.87857196]
[1772472372103,3.39293542,88.127,88.078,3.59424882]
[1772472372279,11.34738896,88.126,88.088,3.59424882]
[1772472372479,3.39293542,88.127,88.09,3.59424882]
[1772472372679,11.34682079,88.131,88.097,0.28432314]
[1772472372993,11.34682079,88.131,88.097,3.87857196]
[1772472373193,7.10653515,88.144,88.103,0.14216157]
[1772472373405,11.34265245,88.163,88.118,3.59424882]
[1772472373578,11.34265245,88.163,88.098,1.13509954]
[1772472373579,11.34265245,88.163,88.128,3.59424882]
[1772472373785,3.39293542,88.161,88.108,3.59424882]
[1772472373985,3.39293542,88.159,88.108,3.59424882]
[1772472374186,3.39293542,88.155,88.113,3.87857196]
[1772472376304,3.30477842,88.149,88.104,0.28432314]
[1772472376602,3.30477842,88.147,88.092,3.52482908]
[1772472376805,3.30477842,88.139,88.089,11.3521552]
[1772472377002,3.30477842,88.137,88.089,11.3521552]
[1772472377204,3.30477842,88.135,88.089,11.3521552]
[1772472377407,3.52377768,88.133,88.089,11.3521552]
[1772472377791,8.24915363,88.12,88.07,1e-08]
[1772472378108,3.52377768,88.109,88.07,1e-08]
[1772472378301,3.52377768,88.107,88.07,1e-08]
[1772472378531,8.24915363,88.1,88.07,1e-08]
[1772472378732,3.52377768,88.099,88.07,1e-08]
[1772472379636,3.52377768,88.107,88.05,3.46745669]
[1772472379826,3.52377768,88.118,88.06,3.46745669]
[1772472380128,3.52377768,88.117,88.067,3.46745669]
[1772472380320,3.52377768,88.115,88.068,11.35486215]
[1772472380523,3.52377768,88.115,88.058,14.82360831]
[1772472380926,3.52377768,88.099,88.048,11.35744139]
[1772472381334,3.52377768,88.089,88.044,11.35793811]
[1772472381921,3.52377768,88.089,88.017,40.82]
[1772472381922,3.52377768,88.089,88.027,28.40030993]
[1772472382127,3.52377768,88.089,88.031,3.46745669]
[1772472382520,3.52377768,88.087,88.033,3.46745669]
[1772472383233,11.35228407,88.088,88.041,3.46745669]
[1772472383743,3.52377768,88.087,88.032,39.75826971]
[1772472384245,3.52377768,88.087,88.033,3.46745669]
[1772472384415,3.52377768,88.069,88.01,3.46745669]
[1772472384619,3.52377768,88.069,87.974,45.46763599]
[1772472384620,3.52377768,88.049,87.999,6.88994372]
[1772472384847,3.52377768,88.049,87.999,0.96739735]
[1772472385046,3.52377768,88.049,88.001,11.36350723]
[1772472386237,3.52377768,88.046,88.0,11.36363636]
[1772472386424,3.52377768,88.067,88.003,3.46745669]
[1772472386621,3.52377768,88.067,88.01,0.28432314]
[1772472386827,3.52377768,88.059,88.002,11.3633781]
[1772472387144,3.52377768,88.059,88.003,3.46745669]
[1772472387944,3.52377768,88.059,88.011,3.46745669]
[1772472388626,3.52377768,88.057,88.013,3.46745669]
[1772472390340,3.52377768,88.057,88.012,11.36208698]
[1772472390549,3.52377768,88.055,88.006,0.28432314]
[1772472390748,3.52377768,88.055,88.01,0.28432314]
[1772472390954,3.52377768,88.055,88.01,3.75177983]
[1772472391539,3.52377768,88.055,88.004,39.77091949]
[1772472391741,3.52377768,88.055,88.005,3.46745669]
[1772472392545,3.52377768,88.039,87.999,0.96739735]
[1772472393634,3.52377768,88.039,88.0,11.36363636]
[1772472393832,39.75104487,88.048,88.001,3.46745669]
[1772472394059,43.27482255,88.048,88.001,3.46745669]
[1772472394352,3.52377768,88.047,88.001,0.28432314]
[1772472394730,3.52377768,88.045,88.002,11.3633781]
[1772472395349,3.52377768,88.044,88.002,11.3633781]
[1772472395559,3.52377768,88.044,88.0,11.36363636]
[1772472395849,3.52377768,88.042,88.0,11.36363636]
[1772472396241,3.52377768,88.04,87.999,0.96739735]
[1772472396849,3.52377768,88.037,87.999,0.96739735]
[1772472397755,11.35873145,88.038,88.001,3.46745669]
[1772472397933,3.52377768,88.037,88.001,3.46745669]
[1772472398135,3.52377768,88.037,88.0,0.28432314]
[1772472398441,3.52377768,88.037,88.0,3.75177983]
[1772472398836,43.28024094,88.036,88.0,3.75177983]
[1772472399153,3.52377768,88.035,88.0,3.75177983]
[1772472400354,11.3589895,88.036,88.0,3.75177983]
[1772472400650,11.3589895,88.036,88.001,3.46745669]
[1772472400843,3.52377768,88.037,88.001,3.46745669]
[1772472401452,3.52377768,88.037,87.999,0.96739735]
[1772472402341,3.52377768,88.035,87.999,1e-08]
[1772472403156,3.52377768,88.033,87.999,1e-08]
[1772472404049,3.52377768,88.033,87.999,3.4674567]
[1772472404452,3.52377768,88.031,87.999,1e-08]
[1772472404755,3.52377768,88.029,87.999,1e-08]
[1772472405354,3.52377768,88.027,87.999,1e-08]
[1772472405854,3.52377768,88.026,87.999,1e-08]
[1772472406354,3.52377768,88.019,87.962,1.13685455]
[1772472406536,3.52377768,88.019,87.96,3.46745669]
[1772472406737,3.52377768,88.019,87.961,3.75177983]
[1772472406942,3.52377768,88.019,87.969,0.28432314]
[1772472407455,3.55036362,88.009,87.951,3.28061635]
[1772472407637,3.55036362,88.009,87.956,0.14216157]
[1772472407838,3.55036362,88.009,87.961,3.28061635]
[1772472409761,39.76911188,88.008,87.966,0.14216157]
[1772472410061,11.36260339,88.008,87.971,3.28061635]
[1772472410767,3.55036362,88.007,87.942,0.28432314]
[1772472410969,3.55036362,88.007,87.949,0.28432314]
[1772472412343,3.55036362,88.005,87.951,0.28432314]
[1772472412548,3.55036362,88.005,87.951,1.42131987]
[1772472412850,3.55036362,88.005,87.96,0.99745002]
[1772472413564,39.77001567,88.006,87.962,0.28432314]
[1772472413565,11.36286162,88.006,87.962,0.28432314]
[1772472413765,3.6298864,88.005,87.964,0.28432314]
[1772472413945,3.6298864,88.005,87.954,0.28432314]
[1772472415143,3.6298864,88.003,87.959,0.28432314]
[1772472415349,3.6298864,88.003,87.961,0.28432314]
[1772472417450,3.6298864,88.001,87.962,11.3685455]
[1772472417840,3.6298864,88.001,87.962,39.78990927]
[1772472419370,3.6298864,88.001,87.962,11.3685455]
[1772472419549,3.6298864,87.999,87.953,0.28432314]
[1772472419752,3.6298864,87.999,87.945,1.1370743]
[1772472420075,3.6298864,87.997,87.944,11.37087237]
[1772472420255,3.6298864,87.995,87.944,11.37087237]
[1772472420867,3.6298864,87.995,87.945,0.28432314]
[1772472421077,1.1342884,87.996,87.948,5.10909883]
[1772472421283,3.6298864,88.025,87.952,5.10909883]
[1772472421451,11.36053803,88.024,87.964,8.80293285]
[1772472421650,14.99036249,88.025,87.969,8.80293285]
[1772472421882,14.99036249,88.025,87.971,0.28432314]
[1772472421883,11.36053803,88.024,87.971,0.28432314]
[1772472422064,3.6298864,88.023,87.973,0.28432314]
[1772472422265,3.6298864,88.023,87.975,0.28432314]
[1772472422569,3.6298864,88.023,87.977,0.28432314]
[1772472422763,3.6298864,88.023,87.979,0.28432314]
[1772472423077,3.6298864,88.023,87.981,0.28432314]
[1772472423277,3.6298864,88.023,87.983,0.28432314]
[1772472423475,14.99068256,88.022,87.983,11.36583203]
[1772472423685,3.6298864,88.021,87.983,11.36583203]
[1772472424105,3.6298864,88.021,87.983,39.78041211]
[1772472424407,3.6298864,88.021,87.983,11.36583203]
[1772472424579,3.6298864,88.021,87.968,3.69383402]
[1772472424756,3.6298864,88.021,87.968,4.68529905]
[1772472425374,3.6298864,88.021,87.969,0.28432314]
[1772472425570,1.41998659,88.029,87.971,0.28432314]
[1772472425571,3.6298864,88.019,87.971,0.28432314]
[1772472425860,3.6298864,88.019,87.973,0.28432314]
[1772472426382,3.49,89.35,87.978,5.10909883]
[1772472426383,3.6298864,88.039,87.978,5.10909883]
[1772472426676,3.6298864,88.039,87.98,0.28432314]
[1772472426881,3.6298864,88.037,87.98,0.28432314]
[1772472427082,3.6298864,88.035,87.98,0.28432314]
[1772472427379,3.6298864,88.035,87.982,0.28432314]
[1772472427578,3.6298864,88.033,87.981,0.99102265]
[1772472427771,41.1772724,88.034,87.96,11.368804]
[1772472427772,3.6298864,88.019,87.96,11.368804]
[1772472427959,3.6298864,88.017,87.96,39.790814]
[1772472428162,3.6298864,88.015,87.961,0.28432314]
[1772472428776,3.6298864,88.015,87.96,39.790814]
[1772472428777,3.6298864,88.015,87.96,11.368804]
[1772472429280,3.6298864,88.015,87.961,0.28432314]
[1772472429778,3.6298864,88.013,87.96,11.368804]
[1772472429979,3.6298864,88.009,87.952,61.6]
[1772472430275,3.6298864,88.007,87.953,0.28432314]
[1772472430477,3.6298864,88.007,87.953,11.65403196]
[1772472430663,1.4203577,88.006,87.953,11.65403196]
[1772472430867,3.6298864,88.005,87.953,11.65403196]
[1772472431464,3.6298864,88.005,87.953,40.07830401]
[1772472433005,96.57773939,88.012,87.954,0.99190379]
[1772472433006,11.36311985,88.004,87.954,0.99190379]
[1772472433188,11.36311985,88.004,87.955,0.28432314]
[1772472433483,3.6298864,88.003,87.955,0.28432314]
[1772472434673,3.6298864,88.003,87.948,0.28432314]
[1772472434879,9.68437985,88.02,87.948,0.28432314]
[1772472434880,3.6298864,88.01,87.952,0.28432314]
[1772472435781,3.6298864,88.008,87.952,0.28432314]
[1772472435981,39.76775629,88.011,87.952,0.28432314]
[1772472435982,3.6298864,88.006,87.952,0.28432314]
[1772472436277,3.6298864,88.006,87.951,39.79488578]
[1772472436669,3.6298864,87.999,87.941,0.28432314]
[1772472436866,3.6298864,87.997,87.943,0.28432314]
[1772472437284,3.6298864,87.997,87.945,0.28432314]
[1772472437464,3.6298864,87.997,87.947,0.28432314]
[1772472437781,3.6298864,87.997,87.948,0.9921187]
[1772472439767,3.6298864,87.995,87.949,39.79579073]
[1772472441782,3.6298864,87.993,87.933,43.781189]
[1772472442166,3.6298864,87.993,87.934,0.99248856]
[1772472442371,3.6298864,87.993,87.935,0.28432314]
[1772472442774,3.6298864,87.992,87.935,0.28432314]
[1772472442973,3.6298864,87.992,87.933,43.49686586]
[1772472442974,3.6298864,87.992,87.937,0.28432314]
[1772472443290,3.6298864,87.992,87.938,0.9923893]
[1772472444992,3.6298864,87.992,87.922,61.6]
[1772472444993,3.6298864,87.99,87.939,39.80031612]
[1772472445769,1.42063212,87.989,87.939,39.80031612]
[1772472445975,3.6298864,87.988,87.939,39.80031612]
[1772472446894,3.6298864,87.987,87.939,39.80031612]
[1772472447206,3.6298864,87.985,87.94,1.27672142]
[1772472447793,11.36493408,87.99,87.94,1.27672142]
[1772472448093,3.6298864,88.008,87.943,0.28432314]
[1772472448292,3.6298864,88.005,87.943,1.27642462]
[1772472449298,3.6298864,88.003,87.948,0.28432314]
[1772472449501,3.6298864,88.003,87.95,0.28432314]
[1772472451205,3.6298864,88.003,87.958,3.69383402]
[1772472451398,3.6298864,88.001,87.96,0.28432314]
[1772472452304,3.6298864,88.001,87.955,39.79307599]
[1772472452500,3.6298864,88.0,87.955,11.36945028]
[1772472452705,3.6298864,87.998,87.955,11.36945028]
[1772472453008,3.6298864,87.996,87.939,3.69383402]
[1772472453189,3.6298864,87.994,87.939,3.69383402]
[1772472453388,3.6298864,87.991,87.94,11.37138958]
[1772472453601,3.6298864,87.989,87.94,11.37138958]
[1772472453800,3.6298864,87.987,87.94,11.37138958]
[1772472454114,3.6298864,87.985,87.94,11.37138958]